[Event "Titled Tuesday Blitz March 15 Late 2022"]
[White "Hambleton, Aman"]
[Black "Chigaev, Maksim"]
[WhiteFideId "2606577"]
[BlackFideId "4108116"]
[WhiteElo "2552"]
[BlackElo "2502"]
[Result "1-0"]
[Round "05"]
[TimeControl "180+1"]
[Date "2022.03.15"]
[WhiteClock "0:00:05"]
[BlackClock "0:00:05"]

1. d4 {[%clk 0:02:55]}  Nf6 {[%clk 0:02:59]} 2. Bf4 {[%clk 0:02:55]}  d5 {[%clk 0:02:59]} 3. e3 {[%clk 0:02:54]}  Bf5 {[%clk 0:03:00]} 4. c4 {[%clk 0:02:53]}  e6 {[%clk 0:02:59]} 5. Nc3 {[%clk 0:02:54]}  Bb4 {[%clk 0:02:56]} 6. Qb3 {[%clk 0:02:29]}  Nc6 {[%clk 0:02:23]} 7. a3 {[%clk 0:02:27]}  Bxc3+ {[%clk 0:02:23]} 8. Qxc3 {[%clk 0:02:28]}  O-O {[%clk 0:02:21]} 9. Bg5 {[%clk 0:01:35]}  h6 {[%clk 0:02:08]} 10. Bxf6 {[%clk 0:01:25]}  Qxf6 {[%clk 0:02:09]} 11. cxd5 {[%clk 0:01:25]}  exd5 {[%clk 0:02:09]} 12. Nf3 {[%clk 0:01:24]}  Be4 {[%clk 0:01:48]} 13. Nd2 {[%clk 0:01:14]}  Bg6 {[%clk 0:01:43]} 14. Be2 {[%clk 0:01:12]}  Ne7 {[%clk 0:01:22]} 15. Qxc7 {[%clk 0:00:27]}  Rac8 {[%clk 0:01:22]} 16. Qxb7 {[%clk 0:00:27]}  Rc2 {[%clk 0:01:19]} 17. Rd1 {[%clk 0:00:26]}  Nc6 {[%clk 0:01:13]} 18. b4 {[%clk 0:00:07]}  Nxd4 {[%clk 0:00:58]} 19. exd4 {[%clk 0:00:05]}  Re8 {[%clk 0:00:59]} 20. O-O {[%clk 0:00:04]}  Rxe2 {[%clk 0:00:58]} 21. Nf3 {[%clk 0:00:04]}  Be4 {[%clk 0:00:56]} 22. Qb8+ {[%clk 0:00:02]}  Kh7 {[%clk 0:00:54]} 23. Qg3 {[%clk 0:00:03]}  Bxf3 {[%clk 0:00:19]} 24. Qxf3 {[%clk 0:00:04]}  Qxf3 {[%clk 0:00:19]} 25. gxf3 {[%clk 0:00:05]}  Rc3 {[%clk 0:00:16]} 26. Rfe1 {[%clk 0:00:04]}  Rxe1+ {[%clk 0:00:14]} 27. Rxe1 {[%clk 0:00:05]}  Rxa3 {[%clk 0:00:14]} 28. Kg2 {[%clk 0:00:04]}  f6 {[%clk 0:00:13]} 29. Re7 {[%clk 0:00:04]}  Ra4 {[%clk 0:00:12]} 30. Rd7 {[%clk 0:00:03]}  Rxb4 {[%clk 0:00:11]} 31. Rxd5 {[%clk 0:00:04]}  Kg6 {[%clk 0:00:11]} 32. Ra5 {[%clk 0:00:04]}  Rb7 {[%clk 0:00:11]} 33. Kg3 {[%clk 0:00:03]}  Kf7 {[%clk 0:00:10]} 34. Kf4 {[%clk 0:00:04]}  Re7 {[%clk 0:00:10]} 35. Ra6 {[%clk 0:00:02]}  Rd7 {[%clk 0:00:08]} 36. Ke4 {[%clk 0:00:02]}  Ke7 {[%clk 0:00:08]} 37. h4 {[%clk 0:00:02]}  h5 {[%clk 0:00:07]} 38. f4 {[%clk 0:00:02]}  Kf7 {[%clk 0:00:04]} 39. d5 {[%clk 0:00:02]}  Ke7 {[%clk 0:00:04]} 40. Ra5 {[%clk 0:00:02]}  Kd6 {[%clk 0:00:04]} 41. Kf5 {[%clk 0:00:02]}  Re7 {[%clk 0:00:02]} 42. Kg6 {[%clk 0:00:02]}  Rc7 {[%clk 0:00:02]} 43. Kxh5 {[%clk 0:00:02]}  Re7 {[%clk 0:00:02]} 44. Kg6 {[%clk 0:00:02]}  Rb7 {[%clk 0:00:02]} 45. f5 {[%clk 0:00:02]}  Kc7 {[%clk 0:00:02]} 46. Ra4 {[%clk 0:00:01]}  Kd6 {[%clk 0:00:02]} 47. Ra5 {[%clk 0:00:01]}  Kc7 {[%clk 0:00:03]} 48. h5 {[%clk 0:00:02]}  Kb6 {[%clk 0:00:03]} 49. Ra1 {[%clk 0:00:02]}  Rd7 {[%clk 0:00:03]} 50. h6 {[%clk 0:00:02]}  gxh6 {[%clk 0:00:04]} 51. Kxf6 {[%clk 0:00:02]}  Rxd5 {[%clk 0:00:04]} 52. Ke6 {[%clk 0:00:03]}  Rd2 {[%clk 0:00:05]} 53. Rf1 {[%clk 0:00:03]}  Re2+ {[%clk 0:00:05]} 54. Kf7 {[%clk 0:00:03]}  a5 {[%clk 0:00:05]} 55. f6 {[%clk 0:00:04]}  Re4 {[%clk 0:00:04]} 56. f3 {[%clk 0:00:04]}  Rf4 {[%clk 0:00:04]} 57. Ke6 {[%clk 0:00:03]}  a4 {[%clk 0:00:04]} 58. Ke5 {[%clk 0:00:04]}  Rc4 {[%clk 0:00:03]} 59. f7 {[%clk 0:00:04]}  Rc8 {[%clk 0:00:03]} 60. Kf6 {[%clk 0:00:04]}  a3 {[%clk 0:00:03]} 61. Ra1 {[%clk 0:00:04]}  Ra8 {[%clk 0:00:03]} 62. Kg6 {[%clk 0:00:04]}  Kb5 {[%clk 0:00:02]} 63. Kxh6 {[%clk 0:00:04]}  Kb4 {[%clk 0:00:03]} 64. Kg7 {[%clk 0:00:04]}  Kb3 {[%clk 0:00:03]} 65. f4 {[%clk 0:00:05]}  Ra7 {[%clk 0:00:03]} 66. f5 {[%clk 0:00:04]}  Kb2 {[%clk 0:00:03]} 67. Rxa3 {[%clk 0:00:05]}  Kxa3 {[%clk 0:00:04]} 68. f6 {[%clk 0:00:05]}  Kb4 {[%clk 0:00:04]} 69. Kg8 {[%clk 0:00:05]}  Kc4 {[%clk 0:00:05]} 70. f8=Q {[%clk 0:00:05]} 1-0


[Site "https://www.chess.com"]

[Event "Titled Tuesday Blitz March 15 Late 2022"]
[White "Hess, Max"]
[Black "Mekhitarian, Krikor Sevag"]
[WhiteFideId "24656666"]
[BlackFideId "2107660"]
[WhiteElo "2276"]
[BlackElo "2598"]
[Result "0-1"]
[Round "05"]
[TimeControl "180+1"]
[Date "2022.03.16"]
[WhiteClock "0:00:56"]
[BlackClock "0:01:49"]

1. d4 {[%clk 0:03:00]}  Nf6 {[%clk 0:02:57]} 2. Nf3 {[%clk 0:03:01]}  g6 {[%clk 0:02:55]} 3. g3 {[%clk 0:03:01]}  Bg7 {[%clk 0:02:55]} 4. Bg2 {[%clk 0:03:01]}  d5 {[%clk 0:02:55]} 5. O-O {[%clk 0:03:02]}  O-O {[%clk 0:02:55]} 6. c4 {[%clk 0:03:02]}  dxc4 {[%clk 0:02:55]} 7. Na3 {[%clk 0:03:02]}  c3 {[%clk 0:02:49]} 8. bxc3 {[%clk 0:03:03]}  c5 {[%clk 0:02:50]} 9. Re1 {[%clk 0:03:02]}  Nc6 {[%clk 0:02:42]} 10. Bb2 {[%clk 0:03:00]}  Qa5 {[%clk 0:02:30]} 11. d5 {[%clk 0:02:38]}  Rd8 {[%clk 0:02:24]} 12. e4 {[%clk 0:02:31]}  Bg4 {[%clk 0:02:20]} 13. h3 {[%clk 0:02:21]}  Bxf3 {[%clk 0:02:20]} 14. Qxf3 {[%clk 0:02:21]}  Ne5 {[%clk 0:02:12]} 15. Qe2 {[%clk 0:02:21]}  c4 {[%clk 0:02:08]} 16. Nxc4 {[%clk 0:02:14]}  Nxc4 {[%clk 0:02:07]} 17. Qxc4 {[%clk 0:02:15]}  Rac8 {[%clk 0:02:07]} 18. Qb3 {[%clk 0:01:59]}  Nd7 {[%clk 0:02:07]} 19. c4 {[%clk 0:01:35]}  Nc5 {[%clk 0:02:05]} 20. Qc2 {[%clk 0:01:19]}  Bxb2 {[%clk 0:02:04]} 21. Qxb2 {[%clk 0:01:20]}  Nd3 {[%clk 0:02:04]} 22. Qxb7 {[%clk 0:01:17]}  Nxe1 {[%clk 0:02:03]} 23. Qxe7 {[%clk 0:01:13]}  Nxg2 {[%clk 0:02:00]} 24. Kxg2 {[%clk 0:01:11]}  Rxc4 {[%clk 0:01:58]} 25. Rb1 {[%clk 0:01:04]}  Qc7 {[%clk 0:01:56]} 26. Qh4 {[%clk 0:00:56]}  Rxd5 {[%clk 0:01:49]} 0-1


[Site "https://www.chess.com"]

[Event "Titled Tuesday Blitz March 15 Late 2022"]
[White "Jaferian, Koosha"]
[Black "Bryakin, Mikhail"]
[WhiteFideId "12507440"]
[BlackFideId "4165314"]
[WhiteElo "2030"]
[BlackElo "2417"]
[Result "0-1"]
[Round "05"]
[TimeControl "180+1"]
[Date "2022.03.15"]
[WhiteClock "0:00:07"]
[BlackClock "0:01:47"]

1. Nf3 {[%clk 0:03:00]}  g6 {[%clk 0:02:58]} 2. b3 {[%clk 0:03:00]}  Bg7 {[%clk 0:02:59]} 3. d4 {[%clk 0:03:01]}  c5 {[%clk 0:02:59]} 4. Bb2 {[%clk 0:03:02]}  cxd4 {[%clk 0:02:59]} 5. Nxd4 {[%clk 0:03:02]}  Nf6 {[%clk 0:02:58]} 6. g3 {[%clk 0:03:02]}  O-O {[%clk 0:02:58]} 7. Bg2 {[%clk 0:03:02]}  Nc6 {[%clk 0:02:59]} 8. c4 {[%clk 0:03:02]}  Nxd4 {[%clk 0:02:55]} 9. Bxd4 {[%clk 0:03:02]}  Rb8 {[%clk 0:02:55]} 10. O-O {[%clk 0:03:01]}  b6 {[%clk 0:02:55]} 11. Nc3 {[%clk 0:03:01]}  Bb7 {[%clk 0:02:55]} 12. Bxb7 {[%clk 0:02:59]}  Rxb7 {[%clk 0:02:56]} 13. Qd2 {[%clk 0:02:58]}  d6 {[%clk 0:02:56]} 14. Rfd1 {[%clk 0:02:57]}  Qc8 {[%clk 0:02:56]} 15. Rac1 {[%clk 0:02:56]}  Qh3 {[%clk 0:02:55]} 16. Bxf6 {[%clk 0:02:50]}  Bxf6 {[%clk 0:02:54]} 17. Nd5 {[%clk 0:02:49]}  Be5 {[%clk 0:02:53]} 18. Qe3 {[%clk 0:02:43]}  Qf5 {[%clk 0:02:32]} 19. f4 {[%clk 0:02:26]}  Bf6 {[%clk 0:02:31]} 20. Qf3 {[%clk 0:02:22]}  Rfb8 {[%clk 0:02:25]} 21. e4 {[%clk 0:02:21]}  Qe6 {[%clk 0:02:24]} 22. Nxf6+ {[%clk 0:02:14]}  Qxf6 {[%clk 0:02:23]} 23. Qd3 {[%clk 0:02:09]}  h5 {[%clk 0:02:21]} 24. Qd4 {[%clk 0:02:09]}  Qxd4+ {[%clk 0:02:19]} 25. Rxd4 {[%clk 0:02:10]}  Rc7 {[%clk 0:02:17]} 26. Rcd1 {[%clk 0:01:45]}  b5 {[%clk 0:02:16]} 27. cxb5 {[%clk 0:01:43]}  Rxb5 {[%clk 0:02:15]} 28. Kf2 {[%clk 0:01:39]}  Rbc5 {[%clk 0:02:12]} 29. R4d2 {[%clk 0:01:36]}  f6 {[%clk 0:02:12]} 30. h3 {[%clk 0:01:29]}  Kf7 {[%clk 0:02:12]} 31. Re2 {[%clk 0:01:29]}  Ke6 {[%clk 0:02:12]} 32. Rde1 {[%clk 0:01:29]}  g5 {[%clk 0:02:12]} 33. Kf3 {[%clk 0:01:27]}  Rc3+ {[%clk 0:02:11]} 34. Re3 {[%clk 0:01:27]}  Rc2 {[%clk 0:02:09]} 35. R1e2 {[%clk 0:01:23]}  Rc1 {[%clk 0:02:09]} 36. Re1 {[%clk 0:01:21]}  Rxe1 {[%clk 0:02:06]} 37. Rxe1 {[%clk 0:01:21]}  Rc3+ {[%clk 0:02:06]} 38. Re3 {[%clk 0:01:19]}  Rc1 {[%clk 0:02:06]} 39. Re2 {[%clk 0:00:51]}  Rh1 {[%clk 0:02:00]} 40. Kg2 {[%clk 0:00:51]}  Rc1 {[%clk 0:02:00]} 41. Kf3 {[%clk 0:00:51]}  a5 {[%clk 0:01:59]} 42. Rb2 {[%clk 0:00:45]}  Rc3+ {[%clk 0:01:58]} 43. Kf2 {[%clk 0:00:36]}  gxf4 {[%clk 0:01:57]} 44. gxf4 {[%clk 0:00:37]}  Rxh3 {[%clk 0:01:57]} 45. a3 {[%clk 0:00:37]}  Kd7 {[%clk 0:01:56]} 46. Rb1 {[%clk 0:00:31]}  h4 {[%clk 0:01:55]} 47. b4 {[%clk 0:00:30]}  a4 {[%clk 0:01:56]} 48. Ra1 {[%clk 0:00:17]}  Rb3 {[%clk 0:01:54]} 49. Kg2 {[%clk 0:00:14]}  Re3 {[%clk 0:01:53]} 50. Rh1 {[%clk 0:00:11]}  Rxa3 {[%clk 0:01:52]} 51. Rxh4 {[%clk 0:00:12]}  Rb3 {[%clk 0:01:52]} 52. Rh8 {[%clk 0:00:08]}  Rxb4 {[%clk 0:01:53]} 53. Kf3 {[%clk 0:00:09]}  Rb3+ {[%clk 0:01:53]} 54. Kg4 {[%clk 0:00:10]}  Ke6 {[%clk 0:01:50]} 55. Ra8 {[%clk 0:00:09]}  a3 {[%clk 0:01:50]} 56. Ra5 {[%clk 0:00:09]}  Re3 {[%clk 0:01:50]} 57. f5+ {[%clk 0:00:08]}  Kd7 {[%clk 0:01:50]} 58. Kf4 {[%clk 0:00:09]}  Rb3 {[%clk 0:01:51]} 59. Ra4 {[%clk 0:00:09]}  Kc6 {[%clk 0:01:51]} 60. Ra7 {[%clk 0:00:10]}  Kc5 {[%clk 0:01:44]} 61. Rxe7 {[%clk 0:00:10]}  Kb4 {[%clk 0:01:45]} 62. Ra7 {[%clk 0:00:05]}  Kc3 {[%clk 0:01:45]} 63. Ra6 {[%clk 0:00:06]}  Kb2 {[%clk 0:01:45]} 64. Rxd6 {[%clk 0:00:06]}  a2 {[%clk 0:01:46]} 65. Rd2+ {[%clk 0:00:06]}  Ka3 {[%clk 0:01:45]} 66. Rxa2+ {[%clk 0:00:07]}  Kxa2 {[%clk 0:01:45]} 67. e5 {[%clk 0:00:05]}  Rb4+ {[%clk 0:01:46]} 68. Ke3 {[%clk 0:00:05]}  fxe5 {[%clk 0:01:46]} 69. f6 {[%clk 0:00:06]}  Rf4 {[%clk 0:01:47]} 70. f7 {[%clk 0:00:06]}  Rxf7 {[%clk 0:01:46]} 71. Ke4 {[%clk 0:00:07]}  Re7 {[%clk 0:01:47]} 0-1


[Site "https://www.chess.com"]

[Event "Titled Tuesday Blitz March 15 Late 2022"]
[White "Jaskolka, Tomasz"]
[Black "Krasteva, Beloslava"]
[WhiteFideId "1170791"]
[BlackFideId "2922029"]
[WhiteElo "2073"]
[BlackElo "1689"]
[Result "1-0"]
[Round "05"]
[TimeControl "180+1"]
[Date "2022.03.16"]
[WhiteClock "0:00:35"]
[BlackClock "0:00:01"]

1. d4 {[%clk 0:02:59]}  Nf6 {[%clk 0:02:58]} 2. Bf4 {[%clk 0:02:58]}  d5 {[%clk 0:02:55]} 3. e3 {[%clk 0:02:57]}  c5 {[%clk 0:02:54]} 4. c3 {[%clk 0:02:57]}  Nc6 {[%clk 0:02:54]} 5. Nd2 {[%clk 0:02:57]}  Bf5 {[%clk 0:02:46]} 6. Ngf3 {[%clk 0:02:55]}  e6 {[%clk 0:02:42]} 7. Qa4 {[%clk 0:02:56]}  a6 {[%clk 0:02:28]} 8. Ne5 {[%clk 0:02:50]}  Rc8 {[%clk 0:02:07]} 9. Nxc6 {[%clk 0:02:50]}  Rxc6 {[%clk 0:02:03]} 10. Bxa6 {[%clk 0:02:49]}  Nd7 {[%clk 0:01:43]} 11. Bxb7 {[%clk 0:02:31]}  Rb6 {[%clk 0:01:33]} 12. Bc6 {[%clk 0:02:32]}  Rxb2 {[%clk 0:01:26]} 13. Nb3 {[%clk 0:02:03]}  c4 {[%clk 0:01:20]} 14. Na5 {[%clk 0:01:52]}  Bc2 {[%clk 0:01:15]} 15. Bxd7+ {[%clk 0:01:34]}  Qxd7 {[%clk 0:01:15]} 16. Qc6 {[%clk 0:01:26]}  Ba4 {[%clk 0:00:52]} 17. Qa8+ {[%clk 0:01:07]}  Qd8 {[%clk 0:00:53]} 18. Qa7 {[%clk 0:00:54]}  Bd7 {[%clk 0:00:08]} 19. Nb7 {[%clk 0:00:46]}  Qc8 {[%clk 0:00:06]} 20. Nd6+ {[%clk 0:00:45]}  Bxd6 {[%clk 0:00:06]} 21. Bxd6 {[%clk 0:00:46]}  f6 {[%clk 0:00:05]} 22. O-O {[%clk 0:00:44]}  Kf7 {[%clk 0:00:03]} 23. Bb4 {[%clk 0:00:39]}  Rd8 {[%clk 0:00:02]} 24. a4 {[%clk 0:00:37]}  Kg8 {[%clk 0:00:01]} 25. a5 {[%clk 0:00:37]}  Bc6 {[%clk 0:00:01]} 26. Qc5 {[%clk 0:00:37]}  Rd7 {[%clk 0:00:01]} 27. a6 {[%clk 0:00:35]} 1-0


[Site "https://www.chess.com"]

[Event "Titled Tuesday Blitz March 15 Late 2022"]
[White "Kashefi, Amir Hosein"]
[Black "Chyngyz, Sultai"]
[WhiteFideId "12557935"]
[BlackFideId "13803158"]
[WhiteElo "2107"]
[BlackElo "1365"]
[Result "1/2-1/2"]
[Round "05"]
[TimeControl "180+1"]
[Date "2022.03.16"]
[WhiteClock "0:00:40"]
[BlackClock "0:00:08"]

1. f4 {[%clk 0:03:00]}  Nf6 {[%clk 0:01:40]} 2. Nf3 {[%clk 0:02:58]}  g6 {[%clk 0:01:35]} 3. b3 {[%clk 0:02:56]}  Bg7 {[%clk 0:01:33]} 4. Bb2 {[%clk 0:02:57]}  O-O {[%clk 0:01:32]} 5. e3 {[%clk 0:02:56]}  d5 {[%clk 0:01:32]} 6. Be2 {[%clk 0:02:56]}  c5 {[%clk 0:01:30]} 7. O-O {[%clk 0:02:56]}  Nc6 {[%clk 0:01:30]} 8. Qc1 {[%clk 0:02:51]}  Qc7 {[%clk 0:01:24]} 9. Nc3 {[%clk 0:02:47]}  a6 {[%clk 0:01:24]} 10. Nd1 {[%clk 0:02:35]}  b5 {[%clk 0:01:20]} 11. Ne5 {[%clk 0:02:35]}  Bb7 {[%clk 0:01:16]} 12. Nxc6 {[%clk 0:02:18]}  Qxc6 {[%clk 0:01:13]} 13. Be5 {[%clk 0:02:13]}  c4 {[%clk 0:01:08]} 14. b4 {[%clk 0:02:02]}  Nd7 {[%clk 0:01:01]} 15. Bxg7 {[%clk 0:02:01]}  Kxg7 {[%clk 0:01:00]} 16. Bf3 {[%clk 0:02:02]}  Nf6 {[%clk 0:00:57]} 17. Nf2 {[%clk 0:02:02]}  Qd6 {[%clk 0:00:54]} 18. a3 {[%clk 0:02:01]}  a5 {[%clk 0:00:53]} 19. Qb2 {[%clk 0:02:01]}  axb4 {[%clk 0:00:53]} 20. axb4 {[%clk 0:02:02]}  Rxa1 {[%clk 0:00:50]} 21. Rxa1 {[%clk 0:02:03]}  Ra8 {[%clk 0:00:47]} 22. Rxa8 {[%clk 0:02:02]}  Bxa8 {[%clk 0:00:48]} 23. Ng4 {[%clk 0:02:02]}  Kf8 {[%clk 0:00:41]} 24. Nxf6 {[%clk 0:02:01]}  exf6 {[%clk 0:00:42]} 25. h3 {[%clk 0:01:56]}  Ke7 {[%clk 0:00:41]} 26. Qd4 {[%clk 0:01:55]}  Bc6 {[%clk 0:00:38]} 27. c3 {[%clk 0:01:54]}  h5 {[%clk 0:00:24]} 28. Qa7+ {[%clk 0:01:51]}  Ke6 {[%clk 0:00:22]} 29. f5+ {[%clk 0:01:37]}  gxf5 {[%clk 0:00:20]} 30. Bxh5 {[%clk 0:01:37]}  Qg3 {[%clk 0:00:19]} 31. Qxf7+ {[%clk 0:01:31]}  Kd6 {[%clk 0:00:19]} 32. Qxf6+ {[%clk 0:01:24]}  Kc7 {[%clk 0:00:18]} 33. Qxf5 {[%clk 0:01:00]}  Qe1+ {[%clk 0:00:14]} 34. Kh2 {[%clk 0:00:59]}  Qxd2 {[%clk 0:00:15]} 35. Qf4+ {[%clk 0:00:59]}  Kb7 {[%clk 0:00:14]} 36. Qd4 {[%clk 0:00:57]}  Qf2 {[%clk 0:00:13]} 37. Bf3 {[%clk 0:00:57]}  Qa2 {[%clk 0:00:07]} 38. h4 {[%clk 0:00:57]}  Qc2 {[%clk 0:00:05]} 39. Bxd5 {[%clk 0:00:53]}  Qf5 {[%clk 0:00:03]} 40. Bxc6+ {[%clk 0:00:46]}  Kxc6 {[%clk 0:00:04]} 41. Qf4 {[%clk 0:00:40]}  Qxf4+ {[%clk 0:00:02]} 42. exf4 {[%clk 0:00:41]}  Kd5 {[%clk 0:00:03]} 43. h5 {[%clk 0:00:40]}  Ke4 {[%clk 0:00:03]} 44. h6 {[%clk 0:00:40]}  Kd3 {[%clk 0:00:04]} 45. h7 {[%clk 0:00:41]}  Kxc3 {[%clk 0:00:05]} 46. h8=Q+ {[%clk 0:00:41]}  Kxb4 {[%clk 0:00:06]} 47. Qe5 {[%clk 0:00:41]}  c3 {[%clk 0:00:07]} 48. f5 {[%clk 0:00:42]}  Kb3 {[%clk 0:00:08]} 49. Qxb5+ {[%clk 0:00:41]}  Ka2 {[%clk 0:00:08]} 50. f6 {[%clk 0:00:42]}  c2 {[%clk 0:00:08]} 51. Qa4+ {[%clk 0:00:39]}  Kb2 {[%clk 0:00:07]} 52. Qb4+ {[%clk 0:00:39]}  Ka1 {[%clk 0:00:08]} 53. Qc3+ {[%clk 0:00:39]}  Ka2 {[%clk 0:00:07]} 54. Qxc2+ {[%clk 0:00:39]}  Ka1 {[%clk 0:00:08]} 55. f7 {[%clk 0:00:40]} 1/2-1/2


[Site "https://www.chess.com"]

[Event "Titled Tuesday Blitz March 15 Late 2022"]
[White "Kucuksari, Kaan"]
[Black "Vokhidov, Shamsiddin"]
[WhiteFideId "6380166"]
[BlackFideId "14204223"]
[WhiteElo "2305"]
[BlackElo "2611"]
[Result "1-0"]
[Round "05"]
[TimeControl "180+1"]
[Date "2022.03.15"]
[WhiteClock "0:01:39"]
[BlackClock "0:01:45"]

1. d4 {[%clk 0:02:59]}  Nf6 {[%clk 0:03:00]} 2. c4 {[%clk 0:02:58]}  e6 {[%clk 0:03:00]} 3. g3 {[%clk 0:02:58]}  c5 {[%clk 0:03:00]} 4. d5 {[%clk 0:02:58]}  exd5 {[%clk 0:03:01]} 5. cxd5 {[%clk 0:02:59]}  d6 {[%clk 0:03:02]} 6. Nc3 {[%clk 0:02:58]}  g6 {[%clk 0:03:02]} 7. Nf3 {[%clk 0:02:58]}  Bg7 {[%clk 0:03:03]} 8. Bg2 {[%clk 0:02:59]}  O-O {[%clk 0:03:04]} 9. O-O {[%clk 0:02:59]}  Re8 {[%clk 0:03:05]} 10. Bf4 {[%clk 0:02:59]}  Bf5 {[%clk 0:03:05]} 11. Nh4 {[%clk 0:02:41]}  Bg4 {[%clk 0:03:04]} 12. h3 {[%clk 0:02:27]}  Nh5 {[%clk 0:03:04]} 13. hxg4 {[%clk 0:02:22]}  Nxf4 {[%clk 0:03:04]} 14. gxf4 {[%clk 0:02:23]}  Qxh4 {[%clk 0:03:03]} 15. e3 {[%clk 0:02:23]}  Nd7 {[%clk 0:03:01]} 16. Bf3 {[%clk 0:02:18]}  Rab8 {[%clk 0:02:56]} 17. Kg2 {[%clk 0:02:18]}  b5 {[%clk 0:02:54]} 18. g5 {[%clk 0:02:15]}  b4 {[%clk 0:02:25]} 19. Ne4 {[%clk 0:01:48]}  Bxb2 {[%clk 0:01:56]} 20. Rb1 {[%clk 0:01:44]}  Bg7 {[%clk 0:01:56]} 21. Rh1 {[%clk 0:01:43]}  Qxh1+ {[%clk 0:01:56]} 22. Qxh1 {[%clk 0:01:44]}  Rb6 {[%clk 0:01:53]} 23. Qh3 {[%clk 0:01:43]}  Nf8 {[%clk 0:01:50]} 24. Nf6+ {[%clk 0:01:42]}  Bxf6 {[%clk 0:01:49]} 25. gxf6 {[%clk 0:01:43]}  h5 {[%clk 0:01:48]} 26. Bxh5 {[%clk 0:01:43]}  gxh5 {[%clk 0:01:49]} 27. Qxh5 {[%clk 0:01:44]}  Nh7 {[%clk 0:01:45]} 28. Rh1 {[%clk 0:01:39]} 1-0


[Site "https://www.chess.com"]

[Event "Titled Tuesday Blitz March 15 Late 2022"]
[White "Kujawski, Adam"]
[Black "Perez Leiva, Jerzy Jesus"]
[WhiteFideId "1100920"]
[BlackFideId "3524337"]
[WhiteElo "2053"]
[BlackElo "2261"]
[Result "0-1"]
[Round "05"]
[TimeControl "180+1"]
[Date "2022.03.16"]
[WhiteClock "0:00:09"]
[BlackClock "0:00:28"]

1. e4 {[%clk 0:02:58]}  c6 {[%clk 0:01:53]} 2. d4 {[%clk 0:02:54]}  d5 {[%clk 0:01:54]} 3. Nc3 {[%clk 0:02:55]}  dxe4 {[%clk 0:01:54]} 4. Nxe4 {[%clk 0:02:56]}  Nf6 {[%clk 0:01:55]} 5. Nxf6+ {[%clk 0:02:56]}  exf6 {[%clk 0:01:56]} 6. Bc4 {[%clk 0:02:56]}  Bd6 {[%clk 0:01:56]} 7. Qe2+ {[%clk 0:02:56]}  Be7 {[%clk 0:01:54]} 8. Be3 {[%clk 0:02:56]}  O-O {[%clk 0:01:54]} 9. O-O-O {[%clk 0:02:55]}  Na6 {[%clk 0:01:47]} 10. d5 {[%clk 0:02:54]}  cxd5 {[%clk 0:01:44]} 11. Bxd5 {[%clk 0:02:53]}  Qa5 {[%clk 0:01:45]} 12. Kb1 {[%clk 0:02:24]}  Bf5 {[%clk 0:01:33]} 13. Bb3 {[%clk 0:01:59]}  Rfe8 {[%clk 0:01:22]} 14. Nf3 {[%clk 0:01:57]}  Bc5 {[%clk 0:01:15]} 15. Nd4 {[%clk 0:01:52]}  Bg6 {[%clk 0:01:11]} 16. h4 {[%clk 0:01:42]}  h5 {[%clk 0:01:10]} 17. Rhe1 {[%clk 0:01:06]}  Bb4 {[%clk 0:01:07]} 18. Rh1 {[%clk 0:00:58]}  Bf8 {[%clk 0:01:07]} 19. Qb5 {[%clk 0:00:54]}  Qc7 {[%clk 0:00:59]} 20. a3 {[%clk 0:00:47]}  Nc5 {[%clk 0:00:57]} 21. Ba2 {[%clk 0:00:43]}  Rac8 {[%clk 0:00:53]} 22. g4 {[%clk 0:00:40]}  Re5 {[%clk 0:00:45]} 23. Nf3 {[%clk 0:00:25]}  Bxc2+ {[%clk 0:00:35]} 24. Kxc2 {[%clk 0:00:20]}  Ne4+ {[%clk 0:00:31]} 25. Kb1 {[%clk 0:00:19]}  Rxb5 {[%clk 0:00:31]} 26. gxh5 {[%clk 0:00:16]}  Nc3+ {[%clk 0:00:30]} 27. Ka1 {[%clk 0:00:14]}  Nxd1 {[%clk 0:00:31]} 28. Rxd1 {[%clk 0:00:13]}  Rxb2 {[%clk 0:00:27]} 29. Kxb2 {[%clk 0:00:11]}  Qc2+ {[%clk 0:00:27]} 30. Ka1 {[%clk 0:00:09]}  Qxd1+ {[%clk 0:00:28]} 0-1


[Site "https://www.chess.com"]